Cogmind - Beta 17.1 @@@ ROGUE MODE // 2026.09.19 @ 20:37:33 Player: 4R-ZE3 Result: Destroyed by P-80 Master with Gamma Rifle Performance ------------- Evolutions (7) 3500 Regions Visited (21) 4200 Robots Destroyed (449) 2245 Value Destroyed (26146) 26146 Prototype IDs (100) 2000 Alien Tech Used (4) 800 Bonus (12094) 12094 TOTAL SCORE: 50985 Bonus ------- High Alert Combat Kills 6689 Follower Combat Kills 1326 Network Hubs Disabled 200 Met Zhirov 300 Built Enhanced Grunts 300 A7 Reached Mainframe 300 Met R17 at Cetus 500 Met R17 at Research 2000 Scanned by Researcher 500 Friendly Fire -21 Cogmind --------- Core Integrity 0/1300 Matter 195/300 Energy 79/900 System Corruption 74% Temperature Cool (0) Movement Walking (65) Location -3/Protoforge Parts ------- > --- POWER (3) -------- (None) > --- PROPULSION (6) --- Armored-Biometal Exoskeleton > --- UTILITY (9) ------ Armored Scrap Engine Concept Phasing Heat Sink (fused) Concept Antigrav Storage Unit Concept Chromion Battery Concept Core Analysis Suite > --- WEAPON (4) ------- Concept Lightning Penetrator Concept XC Strikerail Concept Helical Railcannon Concept Helical Railcannon > --- INVENTORY (25) --- Light Quantum Reactor Experimental Coolant Injector Concept Thermoelectric Network Concept Thermoelectric Network Concept Antigrav Storage Unit Concept NT7 Matterbank (750) Long-range Terrain Scanner Concept Weapon Articulator Experimental ECM Suite Concept Cloak Mesh Concept Cloak Mesh Advanced Component Analysis Suite Concept Matter Streamer Crosscalibrator Transdimensional Reconstructor High-powered Transdimensional Reconstructor Enhanced Gamma Rifle Faulty Concept XC Strikerail Concept XC Strikerail Peak State ------------ > --- POWER ------------ Hybrid Graviton Reactor Quantum-Antimatter Reactor > --- PROPULSION ------- Armored-Biometal Exoskeleton > --- UTILITY ---------- Armored Scrap Engine Concept Phasing Heat Sink Concept Phasing Heat Sink Concept Antigrav Storage Unit Concept Core Analysis Suite Advanced Weapon Cycler Concept Reaction Jets Advanced Force Field > --- WEAPON ----------- Concept Rapid Grenade Launcher Hpw. KE Rail Construct/C > --- INVENTORY -------- Light Quantum Reactor Experimental Coolant Injector Concept Thermoelectric Network Concept Thermoelectric Network Concept Antigrav Storage Unit Concept Chromion Battery Concept NT7 Matterbank Long-range Terrain Scanner Concept Weapon Articulator Experimental ECM Suite Concept Cloak Mesh Concept Cloak Mesh Advanced Component Analysis Suite Concept Matter Streamer Crosscalibrator Transdimensional Reconstructor High-powered Transdimensional Reconstructor Enhanced Gamma Rifle Concept Lightning Penetrator Concept XC Strikerail Concept XC Strikerail Concept XC Strikerail Concept Helical Railcannon Concept Helical Railcannon [Rating: 248] Favorites ----------- Power Constructs Engine Cooled Ion Engine Power Core Reinforced Fission Core Reactor Constructs Propulsion Constructs Treads Armored Treads Leg Constructs Wheel Wheel Utility Armored Scrap Engine Device Armored Scrap Engine Storage High-capacity Storage Unit Processor Experimental Targeting Computer Protection Centrium Medium Armor Plating Weapon Constructs Energy Gun Beam Rifle Energy Cannon Beam Cannon Ballistic Gun Improved Assault Rifle Ballistic Cannon Constructs Launcher Concept Rapid Grenade Launcher Impact Weapon Flail Slashing Weapon Phasing Sabre Build | -11 -10 -10 -8 -8 -8 -6 -6 -6 -6 -6 -5 -5 -5 -5 -4 -4 -4 -4 -3 -3 -3 ------- Run | Yrd Mat Sub Mat Sto Rec Fac Ext Cet Arc Hub Fac Upp Upp Zhi Pro Fac Upp Upp Res Qua Frg Slots Evolved 14 | . . . 4 . . 4 . . . . 2 . . . . 2 . . 2 . . Power 1 | . . . . . . 1 . . . . . . . . . . . . . . . Propulsion 4 | . . . 2 . . 1 . . . . . . . . . 1 . . . . . Utility 7 | . . . 1 . . 2 . . . . 2 . . . . 1 . . 1 . . Weapon 2 | . . . 1 . . . . . . . . . . . . . . . 1 . . Parts Attached 133 | . 9 1 15 10 6 7 8 3 4 4 17 1 1 2 . 4 1 . 3 5 32 Power 13 | . 1 1 2 1 1 . 1 . . . 2 . . . . . . . . 2 2 Engine 6 | . 1 1 1 1 1 . 1 . . . . . . . . . . . . . . Core 3 | . . . 1 . . . . . . . 2 . . . . . . . . . . Reactor 4 | . . . . . . . . . . . . . . . . . . . . 2 2 Propulsion 17 | . 3 . 6 4 3 . . . . . . . . . . . . . 1 . . Treads 12 | . 2 . 4 4 1 . . . . . . . . . . . . . 1 . . Leg 1 | . . . 1 . . . . . . . . . . . . . . . . . . Wheel 4 | . 1 . 1 . 2 . . . . . . . . . . . . . . . . Hover . | . . . . . . . . . . . . . . . . . . . . . . Flight . | . . . . . . . . . . . . . . . . . . . . . . Utility 68 | . 2 . 2 . 1 3 3 2 2 4 13 1 1 2 . 4 1 . 1 3 23 Device 46 | . . . 2 . 1 2 2 2 2 3 7 1 1 1 . 2 1 . 1 3 15 Storage 6 | . 1 . . . . . . . . . 1 . . . . 1 . . . . 3 Processor 11 | . 1 . . . . 1 1 . . 1 2 . . . . 1 . . . . 4 Hackware . | . . . . . . . . . . . . . . . . . . . . . . Protection 5 | . . . . . . . . . . . 3 . . 1 . . . . . . 1 Artifact . | . . . . . . . . . . . . . . . . . . . . . . Weapon 35 | . 3 . 5 5 1 4 4 1 2 . 2 . . . . . . . 1 . 7 Energy Gun 13 | . . . 3 2 . 2 1 1 . . . . . . . . . . 1 . 3 Energy Cannon 8 | . 2 . . 1 . 1 1 . 1 . 2 . . . . . . . . . . Ballistic Gun 7 | . . . 2 1 1 . 1 . 1 . . . . . . . . . . . 1 Ballistic Cannon 4 | . . . . 1 . 1 . . . . . . . . . . . . . . 2 Launcher 1 | . . . . . . . . . . . . . . . . . . . . . 1 Special Weapon . | . . . . . . . . . . . . . . . . . . . . . . Impact Weapon 1 | . 1 . . . . . . . . . . . . . . . . . . . . Slashing Weapon 1 | . . . . . . . 1 . . . . . . . . . . . . . . Piercing Weapon . | . . . . . . . . . . . . . . . . . . . . . . Special Melee Weapon . | . . . . . . . . . . . . . . . . . . . . . . Unidentified Prototypes 26 | . . . 1 3 1 . . 1 2 3 1 . . 3 . . . 1 2 . 8 Corrupted Parts 2 | . . . . . . . . 1 . . . . . . . . . . . . 1 System Corruption 9 | . . . . . . . . 5 . . . . . . . . . . . . 4 Parts Lost 35 | . 2 1 . . 2 . 4 . . . 3 . . . . . . . . . 23 Power 9 | . . 1 . . . . 2 . . . 1 . . . . . . . . . 5 Propulsion 4 | . 1 . . . 1 . . . . . . . . . . . . . . . 2 Utility 13 | . . . . . . . 1 . . . 1 . . . . . . . . . 11 Weapon 9 | . 1 . . . 1 . 1 . . . 1 . . . . . . . . . 5 Highest Loss Streak 13 | . 1 1 . . 1 . 3 . . . 1 . . . . . . . . . 13 To Critical Strikes 4 | . . . . . . . . . . . . . . . . . . . . . 4 Average Backups 19 | . 12 17 18 20 14 18 18 18 17 18 18 19 19 20 19 19 19 18 21 24 22 Power 1 | . 2 2 1 1 1 1 . 1 1 2 1 2 1 1 1 1 . . . 1 . Propulsion 3 | . 2 1 2 8 7 8 8 5 5 5 2 1 1 2 3 1 1 1 1 . . Utility 8 | . . 1 . . 1 5 5 3 4 7 9 12 12 11 11 10 12 12 11 14 14 Weapon 5 | . 8 12 14 9 3 2 4 8 7 3 4 2 4 4 3 5 5 4 6 5 3 Tool/Special . | . . . . . . . . . . . . . . . . . . . . . . Unused Backups 154 | . 8 . 5 6 21 4 7 8 4 6 11 5 2 2 1 2 5 . 6 18 33 Power 17 | . . . 1 2 . 1 2 . . 1 3 . 2 . . . 1 . . 2 2 Propulsion 31 | . 4 . . . 10 1 1 1 . . 1 3 . . . 1 . . 1 5 3 Utility 24 | . 1 . . . . . 1 2 . 3 1 1 . 1 . . . . . 2 12 Weapon 80 | . 3 . 4 4 11 2 3 5 4 2 6 1 . 1 1 1 4 . 5 9 14 Tool/Special 2 | . . . . . . . . . . . . . . . . . . . . . 2 Average Slot Usage (%) 59 | . 98 99 98 99 74 52 52 47 46 47 53 52 52 52 52 51 52 51 49 50 52 Engine 2 | . 14 13 5 8 8 . 3 2 6 6 . . . . . . . . . . . Reactor 3 | . . . . . . . . 3 . . 2 5 5 5 5 5 5 5 4 4 7 Treads 7 | . 27 14 25 36 21 6 4 5 6 6 5 5 5 5 5 2 . . 1 . . Leg 1 | . . . 3 . . . 1 . . . . . . . . 2 5 5 2 1 1 Device 16 | . . . 9 9 8 12 12 13 12 13 17 17 17 17 17 20 21 20 21 22 25 Storage 6 | . 16 14 9 9 9 6 6 6 6 6 5 5 5 5 5 5 5 5 4 4 4 Processor 7 | . 9 14 9 9 4 5 6 6 6 5 6 11 11 11 11 10 10 10 9 9 3 Energy Gun 1 | . 6 . 20 11 4 2 3 1 . . . . . . . . . . . . . Energy Cannon 4 | . 21 23 . . 3 7 5 2 2 4 2 5 5 5 5 3 2 . 3 1 1 Ballistic Gun 1 | . . . 5 10 8 . . . . . . . . . . . . . . . . Ballistic Cannon 2 | . . . . 5 2 2 1 3 3 1 3 . . . . 1 2 5 . 2 2 Peak Build Rating 248 | . 12 12 31 37 48 67 78 91 101 101 133 130 113 114 114 131 129 125 144 172 248 Average Rating 107 | . 9 11 25 33 36 62 68 80 92 93 125 122 112 113 113 121 125 124 137 154 194 On Entrance 83 | 6 6 12 11 31 31 44 64 76 91 101 96 128 113 113 114 114 126 125 125 139 162 Avg Prop Armor Cover (%) 13 | . . 12 14 . . . . . . . . . . . . . . . . . . Naked Turns . | . . . . . . . . . . . . . . . . . . . . . . Heaviest Build 180 | 12 57 53 59 60 60 73 76 86 93 93 126 90 96 96 97 143 136 136 149 180 163 Greatest Support 274 | 20 40 10 80 80 81 62 117 175 175 175 274 274 175 175 175 175 175 175 252 189 249 Greatest Overweight (x) 33 | . 5 5 2 . 2 1 1 . . . . . . . . . . . . 1 33 Average Overweight (x) . | . . 4 1 . . . . . . . . . . . . . . . . . . Largest Inventory Capacity 25 | . 20 20 20 20 20 20 20 20 20 20 20 20 20 20 20 25 25 25 25 25 25 Average Capacity 21 | . 18 20 20 20 20 20 20 20 20 20 20 20 20 20 20 20 25 25 25 25 25 Most Carried 25 | . 18 18 20 20 19 20 20 20 20 20 20 20 20 20 20 20 22 18 23 25 25 Average Carried 19 | . 12 17 18 19 14 18 18 18 18 19 18 19 19 19 19 19 19 18 21 24 22 Final Capacity 25 | 8 20 20 20 20 20 20 20 20 20 20 20 20 20 20 20 25 25 25 25 25 25 Final Carried 25 | 6 17 18 20 20 17 19 20 20 20 19 20 20 20 20 20 20 18 18 22 25 19 Scrap Engine Consumption 367 | . . . . . 48 14 47 25 12 12 29 9 2 4 2 9 8 . 17 36 93 Constructs Created 5 | . . . . . 3 . 2 . . . . . . . . . . . . . . Constructs Modified 153 | . . . . . 16 7 17 12 6 2 13 3 1 1 . 5 3 . 8 18 41 Class Distribution -------------------- 65% | Construct 11% | Gunner 8% | Commander-Construct 8% | Scavenger-Construct 6% | Mutant Dominant Class ---------------- Mutant | -10/Materials Mutant | -10/Subcaves Gunner | -8/Materials Gunner | -8/Storage Gunner | -8/Recycling Construct | -6/Factory Construct | -6/Extension Commander-Construct | -6/Cetus Commander-Construct | -6/Archives Commander-Construct | -6/Hub_04(d) Construct | -5/Factory Construct | -5/Upper Caves Construct | -5/Upper Caves Construct | -5/Zhirov Construct | -4/Proximity Caves Construct | -4/Factory Construct | -4/Upper Caves Construct | -4/Upper Caves Construct | -3/Research Construct | -3/Quarantine Construct | -3/Protoforge Resources | -11 -10 -10 -8 -8 -8 -6 -6 -6 -6 -6 -5 -5 -5 -5 -4 -4 -4 -4 -3 -3 -3 ----------- Run | Yrd Mat Sub Mat Sto Rec Fac Ext Cet Arc Hub Fac Upp Upp Zhi Pro Fac Upp Upp Res Qua Frg Matter Collected 15799 | 200 80 64 220 573 300 287 405 280 160 80 2852 686 283 83 210 1787 575 67 161 2319 4127 Remotely . | . . . . . . . . . . . . . . . . . . . . . . Salvage Created 26473 | . 317 57 367 1109 482 274 666 253 254 891 4548 1032 917 120 487 1854 1171 70 420 3079 8105 Parts 1124 | . 25 6 13 46 23 20 25 11 15 51 216 28 27 . 11 57 29 4 12 156 349 Haulers Intercepted 6 | . . . 1 3 . . . . . . 1 . . . . . . . 1 . . Recyclers Shooed 6 | . 1 . 1 1 . . 2 . . . 1 . . . . . . . . . . Parts Field Recycled . | . . . . . . . . . . . . . . . . . . . . . . Retrieved Matter . | . . . . . . . . . . . . . . . . . . . . . . Parts Self-Destructed 56 | . . . . . . . . . . . . 21 4 . 6 . 16 9 . . . Prevented 44 | . . . . . . . . . . . . 8 23 . 8 . 5 . . . . Parts Restored 5 | . . . . . . . . . . . . . . . . . . . . . 5 Faulty 5 | . . . . . . . . . . . . . . . . . . . . . 5 Kills | -11 -10 -10 -8 -8 -8 -6 -6 -6 -6 -6 -5 -5 -5 -5 -4 -4 -4 -4 -3 -3 -3 ------- Run | Yrd Mat Sub Mat Sto Rec Fac Ext Cet Arc Hub Fac Upp Upp Zhi Pro Fac Upp Upp Res Qua Frg Combat Hostiles Destroyed 367 | . 10 1 6 18 11 8 10 3 2 10 70 18 16 . 9 25 15 3 4 38 90 Melee 1 | . . . . . . . 1 . . . . . . . . . . . . . . Guns 28 | . 5 . 4 12 4 2 1 . . . . . . . . . . . . . . Cannons 255 | . 4 1 . 6 7 6 6 3 2 10 55 14 12 . 5 15 8 3 4 32 62 AOE 13 | . 1 . . . . . . . . . 10 . . . . 2 . . . . . Classes Destroyed 28 | . 4 1 3 3 . 1 . . . 1 5 . . . . . 2 . . . 8 Worker 6 | . . . . 1 . 1 . . . 1 1 . . . . 1 . . . . 1 Builder 12 | . . . . 1 . . . . . 1 1 . . . . 2 . . . 6 1 Tunneler 1 | . . . . . . . . . . . 1 . . . . . . . . . . Hauler 6 | . . . 1 3 . . . . . . 1 . . . . . . . 1 . . Recycler 10 | . . . . 3 . . . . . 1 2 . . . . 2 . . . 2 . Carrier 3 | . . . . . . . . . . . . . . . . . . . . . 3 Mechanic 5 | . . . . . . . . . . . 2 . . . . 1 . . . . 2 Operator 10 | . 1 . 1 . . . 1 . 2 1 1 . . . . . . . 1 1 1 Watcher 26 | . 1 . . 1 . . 1 1 . 1 7 . . . . 6 . . 2 2 4 Swarmer 41 | . 6 . . 4 . 4 . . . . 13 3 . . 2 6 . 3 . . . Saboteur 1 | . . . . . . . . . . . . . . . . . . . . . 1 Grunt 118 | . 4 . 3 7 . 2 . 2 . 4 28 8 15 . 3 3 6 . 2 9 22 Brawler 8 | . . . . . . . . . . . 2 4 . . . . . . . . 2 Duelist 7 | . . . . . . . . . . . 3 2 . . . . . . . . 2 Protector 4 | . . . . . . . . . . 1 1 . . . . . . . . . 2 Researcher 3 | . . . . . . . . . . . . . . . . . . . . . 3 Sentry 41 | . . . 2 6 3 . 7 . 2 1 4 1 . . . 3 1 . . 3 8 Hunter 29 | . . . 1 1 . . 3 . . . 10 . . . . 2 2 . 2 6 2 Programmer 75 | . . . . . . 2 . . . 1 8 . 1 . 3 11 . . . 20 29 Behemoth 2 | . . . . . . . . . . . 1 . . . 1 . . . . . . Cetus Guard 1 | . . . . . . . . 1 . . . . . . . . . . . . . Lightning 3 | . . . . . . . . . . 3 . . . . . . . . . . . Hotshot 6 | . . . . . . . . . . . . . . . . . . . . . 6 Decapitator 5 | . . . . . . . . . . . . . . . . . . . . . 5 Immortal 2 | . . . . . . . . . . . . . . . . . . . . . 2 Striker 2 | . . . . . . . . . . . . . . . . . . . . . 2 Executioner 1 | . . . . . . . . . . . . . . . . . . . . . 1 Alpha 7 2 | . . . . . . . . . . . . . . . . . . . . . 2 V-Series 4 | . . . . . . . . . . . . . . . . . . . . . 4 Subdweller 9 | . . 1 . . 8 . . . . . . . . . . . . . . . . Samaritan 1 | . . . . . . . . . . . . . . . . . 1 . . . . Thug 5 | . . . . . . . . . . . . . . . . . 5 . . . . Mutant 1 | . . . . . . . . . . . . . . . . . 1 . . . . Best Kill Streak 11 | . 4 1 2 10 3 3 5 2 2 8 11 9 5 . 3 5 6 3 2 6 10 Combat Bots Only 9 | . 4 1 2 7 3 3 5 2 1 5 7 9 5 . 3 5 6 3 2 5 7 Max Kills in Single Turn 4 | . 1 1 1 2 1 1 1 1 1 2 4 2 1 . 1 2 2 1 1 2 3 Gunslinging . | . . . . . . . . . . . . . . . . . . . . . . Exploded 4 | . 1 . . . . . . . . . 4 . . . . 1 . . . . . Melee 1 | . . . . . . . 1 . . . . . . . . . . . . . . Uniques/NPCs Destroyed . | . . . . . . . . . . . . . . . . . . . . . . Combat | -11 -10 -10 -8 -8 -8 -6 -6 -6 -6 -6 -5 -5 -5 -5 -4 -4 -4 -4 -3 -3 -3 -------- Run | Yrd Mat Sub Mat Sto Rec Fac Ext Cet Arc Hub Fac Upp Upp Zhi Pro Fac Upp Upp Res Qua Frg Hostile Shots Fired 2944 | . 66 2 47 128 35 48 331 27 13 52 380 39 23 . 19 136 61 26 52 290 1169 Missed 880 | . 15 1 11 36 15 9 104 7 5 12 98 13 10 . 6 43 30 5 16 94 350 Hits 2064 | . 51 1 36 92 20 39 227 20 8 40 282 26 13 . 13 93 31 21 36 196 819 Melee 57 | . . . . 5 . . . . . . 17 1 . . . . . . . . 34 Projectile 2007 | . 51 1 36 87 20 39 227 20 8 40 265 25 13 . 13 93 31 21 36 196 785 AOE 184 | . . . . . 1 . . . . . 2 . . . . . . . . . 181 Critical Strikes 131 | . 1 . . 4 . . 1 . 1 6 11 1 . . 1 10 2 . 2 18 73 Part Disruptions 7 | . . . . . . . . . . . . . . . . 1 . . . . 6 Damage Taken 30736 | . 560 22 590 1452 434 627 2235 271 176 885 5572 524 245 . 302 1169 497 313 517 1307 13038 Core 3136 | . 67 . 49 135 18 84 406 36 21 189 552 47 18 . 21 113 56 24 17 70 1213 Absorbed by Shields 3340 | . . . . . . . 67 162 . . . . . . . . . . . 599 2512 Reduced by Siege Mode 134 | . . . . . . . . . . . 134 . . . . . . . . . . Ignored by Resistances 8741 | . . . . . . . . . . 211 231 . . . . 987 . . 168 2371 4773 Regen/Repaired (Parts) 14583 | . . . . . 5 167 1232 197 24 47 2737 1898 115 . 42 619 471 . 1095 633 5301 Core Remaining (%) 61 | 100 . 73 . . 63 . . . . 13 . . . . 36 . . 83 . . . Volleys Fired 1396 | . 32 3 26 72 32 63 67 36 24 59 218 27 21 3 16 102 37 11 38 149 360 Largest 3 | . 2 2 3 3 3 2 2 2 1 1 1 1 1 1 1 1 1 1 1 1 2 Hottest 352 | . 120 120 168 149 138 176 176 344 75 163 203 213 213 213 213 213 213 213 213 352 352 Shots Fired 1642 | . 63 6 76 198 76 76 85 37 23 59 218 27 21 3 16 101 37 11 38 148 323 Gun 359 | . 43 . 76 151 52 9 21 2 . . . . . . . . . . . . 5 Cannon 1283 | . 20 6 . 47 24 67 64 35 23 59 218 27 21 3 16 101 37 11 38 148 318 Launcher . | . . . . . . . . . . . . . . . . . . . . . . Special . | . . . . . . . . . . . . . . . . . . . . . . Kinetic 667 | . . . 20 110 49 40 16 . 8 6 166 14 . . . . 8 11 . 90 129 Thermal 424 | . 20 6 56 88 27 36 61 37 15 53 9 . . . . . . . 15 . 1 Explosive . | . . . . . . . . . . . . . . . . . . . . . . Electromagnetic 551 | . 43 . . . . . 8 . . . 43 13 21 3 16 101 29 . 23 58 193 Robot Hit Streak 38 | . 9 4 18 28 14 5 12 8 15 4 21 23 11 4 17 22 19 4 10 10 38 Robot Miss Streak 6 | . 3 1 2 4 1 2 3 3 2 3 3 1 2 1 . 2 3 2 5 3 6 Penetration Max 2 | . . . . . . . . . . . 1 1 . . . . 1 . . 1 2 Secondary Targets 4 | . 1 . . 2 1 . . . . . . . . . . . . . . . . Max Gunslinging Chain 1 | . 1 . . 1 1 . . . . . . . . . . . . . . . . Shots Hit Robots 1049 | . 35 4 59 134 51 24 61 34 18 26 149 25 18 2 16 71 24 6 22 79 191 Core Hits 443 | . 14 2 14 48 15 13 23 22 7 20 81 13 11 . 5 26 9 1 7 32 80 Critical Kills 31 | . . . . . 1 . 2 . . . 7 5 3 . 3 5 4 . . . 1 Critical Parts Destroyed 54 | . . . 1 . . . . . . . 27 3 3 . 2 9 5 1 . . 3 Critical Strikes 104 | . 1 . 5 8 3 1 2 . . . 37 8 6 . 5 14 9 1 . . 4 Burn 14 | . . . 4 8 2 . . . . . . . . . . . . . . . . Meltdown 3 | . . . . . . . 2 . . . . . . . . . . . . . 1 Destroy 85 | . . . 1 . 1 . . . . . 37 8 6 . 5 14 9 1 . . 3 Blast 1 | . . . . . . 1 . . . . . . . . . . . . . . . Corrupt 1 | . 1 . . . . . . . . . . . . . . . . . . . . Melee Attacks 5 | . 1 1 . . . . 3 . . . . . . . . . . . . . . Impact 2 | . 1 1 . . . . . . . . . . . . . . . . . . . Slashing 3 | . . . . . . . 3 . . . . . . . . . . . . . . Piercing . | . . . . . . . . . . . . . . . . . . . . . . Sneak Attacks . | . . . . . . . . . . . . . . . . . . . . . . Combat Hostiles . | . . . . . . . . . . . . . . . . . . . . . . Follow-up Attacks . | . . . . . . . . . . . . . . . . . . . . . . Damage Inflicted 88752 | . 556 70 959 2297 973 609 1659 983 1054 2300 13959 2656 2414 300 1162 5851 2453 525 2280 10126 35566 Guns 4127 | . 254 . 959 1704 661 84 307 38 . . . . . . . . . . . . 120 Cannons 81481 | . 271 70 . 593 312 522 1319 945 1054 2078 12125 2656 2323 300 1162 5351 2453 525 2280 10087 35055 Explosions 3099 | . 31 . . . . . . . . 222 1834 . 91 . . 500 . . . 30 391 Melee 33 | . . . . . . . 33 . . . . . . . . . . . . . . Ramming 12 | . . . . . . 3 . . . . . . . . . . . . . 9 . Kinetic 44538 | . . . 317 1310 614 378 216 . 273 214 10037 1232 . . . . 640 525 . 6545 22237 Thermal 10558 | . 302 70 642 987 359 228 1355 983 781 1864 975 . 91 . . 500 . . 1000 30 391 Explosive 1001 | . . . . . . . . . . . 1001 . . . . . . . . . . Electromagnetic 32610 | . 254 . . . . . 55 . . 222 1946 1424 2323 300 1162 5351 1813 . 1280 3542 12938 Impact . | . . . . . . . . . . . . . . . . . . . . . . Slashing 33 | . . . . . . . 33 . . . . . . . . . . . . . . Piercing . | . . . . . . . . . . . . . . . . . . . . . . Highest Corruption 73 | . 1 1 2 2 2 1 1 6 6 14 2 1 1 1 5 4 4 4 . 16 73 Average Corruption 9 | . 1 1 2 2 2 1 1 5 3 8 1 1 1 1 3 2 4 4 . 11 35 Corruption Purged 18 | . . . . . . . . . 6 . 2 . . . . . . . . 1 9 Corruption Blocked . | . . . . . . . . . . . . . . . . . . . . . . Effects 518 | . 2 3 1 19 31 7 11 24 9 3 10 3 9 1 9 18 25 12 . 88 233 Message Errors 126 | . . 1 . 4 6 2 4 6 4 1 3 . 1 . . 4 8 3 . 25 54 Matter Fused 117 | . 1 1 . 4 6 2 2 10 2 . 3 2 4 1 1 4 7 4 . 18 45 Heat Flow Errors 60 | . . . . 1 6 . 3 2 1 . 1 1 1 . 3 2 2 1 . 15 21 Energy Discharges 67 | . 1 . . 3 5 1 1 2 1 . 1 . 1 . 2 2 4 . . 15 28 Parts Rejected 7 | . . . . . . . . . . . . . . . . . . . . 1 6 Parts Fused 6 | . . . . . . . . . . . . . . . . . . 1 . . 5 Data Loss (minor) 51 | . . 1 1 4 6 1 . 2 . 2 1 . 1 . 3 4 2 3 . 7 13 Data Loss (major) 18 | . . . . . 2 . . 2 . . 1 . 1 . . 1 2 . . 2 7 Misfires 2 | . . . . 1 . . 1 . . . . . . . . . . . . . . Alerts 12 | . . . . 1 . . . . . . . . . . . . . . . 3 8 Misdirections 4 | . . . . . . . . . . . . . . . . . . . . 1 3 Weapon Failures 48 | . . . . 1 . 1 . . 1 . . . . . . 1 . . . 1 43 Overload Shots 2 | . . . . . . . . 2 . . . . . . . . . . . . . Overflow Damage 15775 | . . . . . 10 . 6 . 71 63 1711 204 287 176 165 1614 248 174 417 2866 7763 Projectiles 15335 | . . . . . 10 . 6 . 71 31 1429 204 287 176 165 1533 248 174 417 2866 7718 Explosions 440 | . . . . . . . . . . 32 282 . . . . 81 . . . . 45 Melee . | . . . . . . . . . . . . . . . . . . . . . . Knockbacks 115 | . . . . 7 . 6 . . 2 . 58 5 . . . . 2 2 . 12 21 Impact . | . . . . . . . . . . . . . . . . . . . . . . Kinetic 106 | . . . . 6 . 5 . . 2 . 53 4 . . . . 2 2 . 12 20 Secondary 9 | . . . . 1 . 1 . . . . 5 1 . . . . . . . . 1 Self-Inflicted Damage 578 | . 15 . . . . . . . . 94 122 . . . . 253 . . . 37 57 Shots 9 | . 1 . . . . . . . . 1 2 . . . . 3 . . . 1 1 Rammed 2 | . . . . . . 1 . . . . . . . . . . . . . 1 . Targets Rammed 2 | . . . . . . 1 . . . . . . . . . . . . . 1 . Kicked . | . . . . . . . . . . . . . . . . . . . . . . Crushed . | . . . . . . . . . . . . . . . . . . . . . . Highest Temperature 493 | . 276 . 282 234 258 288 319 315 225 112 326 30 222 . 28 120 38 . . 230 493 Average Temperature 91 | . 77 . 131 63 72 75 99 133 72 20 99 30 92 . 17 47 38 . . 78 115 Received Heat Transfer 4700 | . 147 . 216 486 54 78 510 44 18 69 968 238 108 . 9 78 112 . 12 134 1419 Effects 11 | . 1 . 4 . . . 4 . . . 1 . . . . . . . . . 1 Energy Bleed 3 | . 1 . 1 . . . . . . . . . . . . . . . . . 1 Interference 8 | . . . 3 . . . 4 . . . 1 . . . . . . . . . . Siege Activations 4 | . . . . . . . . . . . 4 . . . . . . . . . . Total Turns 65 | . . . . . . . . . . . 65 . . . . . . . . . . Longest Duration 26 | . . . . . . . . . . . 26 . . . . . . . . . . Martial Activations . | . . . . . . . . . . . . . . . . . . . . . . Shielding Activations . | . . . . . . . . . . . . . . . . . . . . . . Robots Disrupted 1 | . . . . . . . . . . . . . . . . 1 . . . . . Combat Hostiles 1 | . . . . . . . . . . . . . . . . 1 . . . . . Robots Corrupted 70 | . . . . . . . . . . . 5 4 4 1 4 9 7 . 2 6 28 Combat Hostiles 66 | . . . . . . . . . . . 5 4 4 1 4 8 7 . . 6 27 Parts Fried 372 | . . . . . . . . . . . 23 8 14 . 9 56 20 . 7 38 197 Impact Corruptions 3 | . . . . . . . . . . . 2 . . . . . . . . . 1 Robots Melted 5 | . . . 2 . . . 2 . . . . . . . . . . . . . 1 Combat Hostiles 4 | . . . 2 . . . 2 . . . . . . . . . . . . . . Parts Melted 36 | . . . 8 7 4 . 12 . . . 3 . . . . . . . 2 . . Heat Transferred 11363 | . 555 148 1924 3071 888 409 2165 50 555 . 798 . 100 . . 200 . . 250 50 200 Parts Sabotaged . | . . . . . . . . . . . . . . . . . . . . . . Parts Stolen . | . . . . . . . . . . . . . . . . . . . . . . Parts Stripped . | . . . . . . . . . . . . . . . . . . . . . . Power Chain Reactions 9 | . 1 . . . . . . . . . 2 . 1 . . 2 . . . 1 2 Alert | -11 -10 -10 -8 -8 -8 -6 -6 -6 -6 -6 -5 -5 -5 -5 -4 -4 -4 -4 -3 -3 -3 ------- Run | Yrd Mat Sub Mat Sto Rec Fac Ext Cet Arc Hub Fac Upp Upp Zhi Pro Fac Upp Upp Res Qua Frg Maximum Alert Level 5 | . . . . . . . . 1 . 1 5 . . . . 2 . . . 2 5 Low Security (%) 59 | . 100 . 100 100 100 100 100 93 100 63 11 . . . . 58 . . 100 27 8 Level 1 16 | . . . . . . . . 6 . 36 12 . . . . 37 . . . 52 24 Level 2 5 | . . . . . . . . . . . 9 . . . . 4 . . . 20 10 Level 3 6 | . . . . . . . . . . . 26 . . . . . . . . . 18 Level 4 3 | . . . . . . . . . . . 13 . . . . . . . . . 9 Level 5 8 | . . . . . . . . . . . 26 . . . . . . . . . 28 High Security . | . . . . . . . . . . . . . . . . . . . . . . Max Security . | . . . . . . . . . . . . . . . . . . . . . . Peak Influence 2566 | . 147 . 70 196 59 150 194 235 107 392 2436 . . . . 469 . . 67 540 2566 Initial 198 | . . . . 20 14 150 15 73 17 . 184 . . . . 48 . . . . 198 Average 373 | . 42 . 20 56 4 90 83 97 21 151 1044 . . . . 193 . . 10 268 1005 Influence Increases 14243 | . 410 . 235 618 195 506 690 498 196 730 3137 380 419 10 311 977 210 70 146 1224 3281 Destroy 0b10 Robot/C 7660 | . 200 . 120 360 60 160 420 280 80 240 1380 360 320 . 220 500 180 60 80 760 1880 Destroy 0b10 Robot/NC 425 | . 10 . 10 45 . 5 20 10 10 30 85 . . 10 . 60 . . 20 55 55 Destroy Leader 1266 | . 42 . 42 98 . 30 56 20 . 72 266 20 30 . 50 132 30 10 16 114 238 Allied During Kill 641 | . . . . . . . 91 158 85 212 . . 54 . 41 . . . . . . Successful Hack 406 | . 37 . 46 26 26 61 49 . . 7 76 . . . . 19 . . . 51 8 Select Force Hacks 150 | . 60 . . . 90 . . . . . . . . . . . . . . . . Disable Machine 1200 | . 45 . . 30 15 30 45 15 15 45 600 . . . . 90 . . . 75 195 Anti-Garrison Action 150 | . . . . . . . . . . . . . . . . . . . . . 150 Destroy Structure 1760 | . 1 . 2 14 4 25 9 15 6 124 550 . . . . 146 . . 30 124 710 Advance Influence 150 | . . . . . . 150 . . . . . . . . . . . . . . . Partial Spotted 15 | . . . . . . 15 . . . . . . . . . . . . . . . Lose Combat Pursuer 420 | . 15 . 15 45 . 30 . . . . 180 . 15 . . 30 . . . 45 45 Influence Decreases 11747 | . 383 27 185 630 233 474 590 586 240 354 1085 1169 680 1388 234 591 673 70 146 872 1137 Entered New Map 3307 | . . 14 . 30 24 . 17 59 27 . 192 899 312 1378 . 29 172 . . . 154 Time Decay 7062 | . 363 13 185 399 209 474 396 407 173 274 703 270 368 10 214 562 501 70 146 572 753 Lost Part 310 | . 20 . . . . . 30 . . . 30 . . . . . . . . . 230 Lost Ally 457 | . . . . 40 . . 147 120 40 80 10 . . . 20 . . . . . . Purge Threat 611 | . . . . 161 . . . . . . 150 . . . . . . . . 300 . Squads Dispatched 71 | . 2 . . 3 . 3 1 1 . 5 21 . . . . 4 . . 4 10 17 Investigation 7 | . 2 . . . . . 1 1 . . 2 . . . . . . . 1 . . Extermination 29 | . . . . . . 3 . . . 2 4 . . . . 3 . . . 8 9 Reinforcement 15 | . . . . 1 . . . . . 3 4 . . . . . . . 3 2 2 Assault 16 | . . . . 2 . . . . . . 8 . . . . . . . . . 6 Garrison 4 | . . . . . . . . . . . 3 . . . . 1 . . . . . Intercept . | . . . . . . . . . . . . . . . . . . . . . . Searches Triggered . | . . . . . . . . . . . . . . . . . . . . . . Construction Impeded 3 | . . . . . . . . . . 1 2 . . . . . . . . . . Haulers Reinforced 1 | . . . . . . . . . . . . . . . . . . . 1 . . Active Scanning Responses . | . . . . . . . . . . . . . . . . . . . . . . Cargo Convoy Interrupts 1 | . . . . . . 1 . . . . . . . . . . . . . . . Stealth | -11 -10 -10 -8 -8 -8 -6 -6 -6 -6 -6 -5 -5 -5 -5 -4 -4 -4 -4 -3 -3 -3 --------- Run | Yrd Mat Sub Mat Sto Rec Fac Ext Cet Arc Hub Fac Upp Upp Zhi Pro Fac Upp Upp Res Qua Frg Distress Signals 13 | . 2 . . . . 1 . 2 . . 5 . . . . . . . 2 1 . Communications Jammed 12 | . . . . . . . . . . . . . . . . 1 . . . . 11 Distress Signals 12 | . . . . . . . . . . . . . . . . 1 . . . . 11 Times Spotted 529 | . 24 1 13 35 12 12 23 12 9 14 94 18 15 . 7 34 15 5 17 48 121 Peak Tracking Total 11 | . 4 1 3 9 2 3 6 5 1 6 6 9 5 . 3 4 5 5 4 5 11 Tactical Retreats 24 | . 1 . 1 1 1 2 . . . . 9 . 1 . . 2 . . . 2 4 ECM-based Alert Blocks 1 | . . . . . . . . . . . . . . . . . . . . . 1 Traps | -11 -10 -10 -8 -8 -8 -6 -6 -6 -6 -6 -5 -5 -5 -5 -4 -4 -4 -4 -3 -3 -3 ------- Run | Yrd Mat Sub Mat Sto Rec Fac Ext Cet Arc Hub Fac Upp Upp Zhi Pro Fac Upp Upp Res Qua Frg Traps Triggered 30 | . 1 . 1 1 . . 1 . . 2 5 . . . . 1 . . . 2 16 Indirectly 2 | . . . . . . . . . . 2 . . . . . . . . . . . Trap Hack Attempts . | . . . . . . . . . . . . . . . . . . . . . . Triggered . | . . . . . . . . . . . . . . . . . . . . . . Disarmed . | . . . . . . . . . . . . . . . . . . . . . . Reprogrammed . | . . . . . . . . . . . . . . . . . . . . . . Reused . | . . . . . . . . . . . . . . . . . . . . . . Traps Extracted . | . . . . . . . . . . . . . . . . . . . . . . Installed . | . . . . . . . . . . . . . . . . . . . . . . Triggered . | . . . . . . . . . . . . . . . . . . . . . . Machines | -11 -10 -10 -8 -8 -8 -6 -6 -6 -6 -6 -5 -5 -5 -5 -4 -4 -4 -4 -3 -3 -3 ---------- Run | Yrd Mat Sub Mat Sto Rec Fac Ext Cet Arc Hub Fac Upp Upp Zhi Pro Fac Upp Upp Res Qua Frg Machines Disabled 94 | . 3 . . 2 1 2 5 1 1 3 40 . . 1 . 6 . . . 5 24 Max in Single Turn 14 | . 1 . . 1 1 1 1 1 1 3 14 . . 1 . 2 . . . 1 2 Garrison Access 3 | . . . . 1 . . . . . . . . . . . . . . . 1 1 Network Hub 1 | . . . . . . . . . . 1 . . . . . . . . . . . Machines Repaired . | . . . . . . . . . . . . . . . . . . . . . . Machines Dismantled . | . . . . . . . . . . . . . . . . . . . . . . Machines Sabotaged . | . . . . . . . . . . . . . . . . . . . . . . Overloaded Fab Kills . | . . . . . . . . . . . . . . . . . . . . . . Hacking | -11 -10 -10 -8 -8 -8 -6 -6 -6 -6 -6 -5 -5 -5 -5 -4 -4 -4 -4 -3 -3 -3 --------- Run | Yrd Mat Sub Mat Sto Rec Fac Ext Cet Arc Hub Fac Upp Upp Zhi Pro Fac Upp Upp Res Qua Frg Machines Accessed 113 | . 9 . 6 14 10 10 13 1 . 5 14 . . 4 . 9 . . 2 9 7 Terminals 78 | . 7 . 5 11 5 6 13 1 . 5 8 . . . . 6 . . 1 6 4 Fabricators 3 | . . . . . . 1 . . . . . . . . . 2 . . . . . Repair Stations . | . . . . . . . . . . . . . . . . . . . . . . Recycling Units 13 | . 2 . 1 2 4 1 . . . . 3 . . . . . . . . . . Scanalyzers 7 | . . . . . . 1 . . . . 2 . . . . . . . . 2 2 Garrison Access 7 | . . . . 1 . 1 . . . . 1 . . . . 1 . . 1 1 1 Total Hacks 284 | . 27 . 17 36 23 22 22 2 . 11 33 . . 17 . 26 . . 5 25 18 Successful 136 | . 15 . 10 20 15 7 8 . . 4 15 . . 17 . 4 . . . 13 8 Failed 145 | . 11 . 7 16 8 14 14 2 . 7 18 . . . . 22 . . 5 11 10 Catastrophic 26 | . 1 . 2 1 1 4 3 1 . . 2 . . . . 6 . . 2 . 3 Database Lockouts 3 | . 1 . . . . 1 . . . . . . . . . . . . . 1 . Manual 149 | . 28 . 15 12 19 12 2 1 . 10 16 . . . . 19 . . 3 2 10 Terminals 203 | . 24 . 16 32 12 13 22 2 . 11 23 . . . . 19 . . 3 16 10 Fabricators 8 | . . . . . . 4 . . . . . . . . . 4 . . . . . Repair Stations . | . . . . . . . . . . . . . . . . . . . . . . Recycling Units 21 | . 3 . 1 3 9 1 . . . . 4 . . . . . . . . . . Scanalyzers 22 | . . . . . . 3 . . . . 5 . . . . . . . . 8 6 Garrison Access 11 | . . . . 1 . 1 . . . . 1 . . . . 3 . . 2 1 2 Terminal Hacks 67 | . 6 . 3 12 2 . 8 . . 1 5 . . 17 . 2 . . . 9 2 Record 7 | . . . . . . . . . . . 1 . . 5 . . . . . 1 . Part Schematic 6 | . . . . 1 . . . . . . . . . 4 . 1 . . . . . Robot Analysis 10 | . 5 . . 1 . . . . . . . . . 4 . . . . . . . Prototype ID Bank 7 | . . . 1 2 . . . . . . . . . 4 . . . . . . . Open Door 12 | . . . . 5 . . 7 . . . . . . . . . . . . . . Branch Access Points 3 | . . . 1 . . . . . . . 1 . . . . 1 . . . . . Recycling Unit Index 1 | . 1 . . . . . . . . . . . . . . . . . . . . Alert Level 4 | . . . . . . . . . . . 1 . . . . . . . . 3 . Unreport Threat 5 | . . . . 2 . . . . . . 1 . . . . . . . . 2 . Locate Traps 3 | . . . . 1 . . 1 . . . . . . . . . . . . . 1 Zone Layout 6 | . . . 1 . . . . . . 1 1 . . . . . . . . 3 . Proto ID Catalog 1 | . . . . . . . . . . . . . . . . . . . . . 1 Release Object 2 | . . . . . 2 . . . . . . . . . . . . . . . . Fabricator Hacks 1 | . . . . . . . . . . . . . . . . 1 . . . . . Build 1 | . . . . . . . . . . . . . . . . 1 . . . . . Repair Station Hacks . | . . . . . . . . . . . . . . . . . . . . . . Recycling Unit Hacks 6 | . . . 1 2 1 . . . . . 2 . . . . . . . . . . Retrieve Components 6 | . . . 1 2 1 . . . . . 2 . . . . . . . . . . Scanalyzer 5 | . . . . . . 1 . . . . 1 . . . . . . . . 2 1 Retrieve Study 5 | . . . . . . 1 . . . . 1 . . . . . . . . 2 1 Garrison Access Hacks 2 | . . . . 1 . . . . . . . . . . . . . . . 1 . Seal Access 2 | . . . . 1 . . . . . . . . . . . . . . . 1 . Unauthorized Hacks 55 | . 9 . 6 5 12 6 . . . 3 7 . . . . 1 . . . 1 5 Terminals 48 | . 7 . 6 5 7 6 . . . 3 7 . . . . 1 . . . 1 5 Track 4 | . . . . . . . . . . . 1 . . . . . . . . . 3 Assimilate 1 | . . . . . . . . . . . 1 . . . . . . . . . . Botnet 13 | . 2 . 1 1 2 1 . . . 1 2 . . . . 1 . . . 1 1 Operators 2 | . . . . . . . . . . . 1 . . . . . . . . . 1 Skim 28 | . 5 . 5 4 5 5 . . . 2 2 . . . . . . . . . . Fabricators . | . . . . . . . . . . . . . . . . . . . . . . Repair Stations . | . . . . . . . . . . . . . . . . . . . . . . Recycling Units 7 | . 2 . . . 5 . . . . . . . . . . . . . . . . Reject 1 | . . . . . 1 . . . . . . . . . . . . . . . . Mask 1 | . . . . . 1 . . . . . . . . . . . . . . . . Tunnel 5 | . 2 . . . 3 . . . . . . . . . . . . . . . . Scanalyzers . | . . . . . . . . . . . . . . . . . . . . . . Garrison Access . | . . . . . . . . . . . . . . . . . . . . . . Data Cores Recovered 3 | . 1 . . . . . 1 . . . 1 . . . . . . . . . . Used . | . . . . . . . . . . . . . . . . . . . . . . Hacking Detections 79 | . 5 . 6 7 6 10 9 2 . 5 12 . . . . 7 . . 2 4 4 Full Trace Events 3 | . . . . . . . 1 1 . . 1 . . . . . . . . . . Feedback Events . | . . . . . . . . . . . . . . . . . . . . . . Feedback Blocked . | . . . . . . . . . . . . . . . . . . . . . . Robot Schematics Acquired . | . . . . . . . . . . . . . . . . . . . . . . Robots Built . | . . . . . . . . . . . . . . . . . . . . . . Authchips . | . . . . . . . . . . . . . . . . . . . . . . Time . | . . . . . . . . . . . . . . . . . . . . . . Total Robot Build Rating . | . . . . . . . . . . . . . . . . . . . . . . Part Schematics Acquired 14 | . . . . 1 . . . . . . . . . 4 . 1 . . . . 8 Parts Built 2 | . . . . . . . . . . . . . . . . 2 . . . . . Authchips . | . . . . . . . . . . . . . . . . . . . . . . Time 58 | . . . . . . . . . . . . . . . . 58 . . . . . Total Part Build Rating 14 | . . . . . . . . . . . . . . . . 14 . . . . . Part Studies Acquired 5 | . . . . . . 1 . . . . 1 . . . . . . . . 2 1 Parts Repaired . | . . . . . . . . . . . . . . . . . . . . . . Time . | . . . . . . . . . . . . . . . . . . . . . . Parts Recycled . | . . . . . . . . . . . . . . . . . . . . . . Recycled Matter . | . . . . . . . . . . . . . . . . . . . . . . Retrieved Matter . | . . . . . . . . . . . . . . . . . . . . . . Retrieved Components 34 | . . . 3 10 9 . . . . . 12 . . . . . . . . . . Parts Scanalyzed . | . . . . . . . . . . . . . . . . . . . . . . Part Schematics Acquired . | . . . . . . . . . . . . . . . . . . . . . . Parts Damaged . | . . . . . . . . . . . . . . . . . . . . . . Bothacking | -11 -10 -10 -8 -8 -8 -6 -6 -6 -6 -6 -5 -5 -5 -5 -4 -4 -4 -4 -3 -3 -3 ------------ Run | Yrd Mat Sub Mat Sto Rec Fac Ext Cet Arc Hub Fac Upp Upp Zhi Pro Fac Upp Upp Res Qua Frg Used RIF Installer . | . . . . . . . . . . . . . . . . . . . . . . Robots Hacked . | . . . . . . . . . . . . . . . . . . . . . . Non-combat . | . . . . . . . . . . . . . . . . . . . . . . Combat . | . . . . . . . . . . . . . . . . . . . . . . Robot Hacks Applied . | . . . . . . . . . . . . . . . . . . . . . . Relay Couplers Released . | . . . . . . . . . . . . . . . . . . . . . . Fabnet Peak Effective % . | . . . . . . . . . . . . . . . . . . . . . . Robots Rewired 9 | . . . . . . . 7 . . . . 2 . . . . . . . . . Allies Hacked . | . . . . . . . . . . . . . . . . . . . . . . Hacks Repelled . | . . . . . . . . . . . . . . . . . . . . . . Allies | -11 -10 -10 -8 -8 -8 -6 -6 -6 -6 -6 -5 -5 -5 -5 -4 -4 -4 -4 -3 -3 -3 -------- Run | Yrd Mat Sub Mat Sto Rec Fac Ext Cet Arc Hub Fac Upp Upp Zhi Pro Fac Upp Upp Res Qua Frg Total Allies 28 | . . . . 2 . . 18 5 . . 1 2 . . . . . . . . . Largest Group 9 | . . . . 2 . . 9 9 7 4 1 2 2 2 2 . . . . . . Highest-Rated Group 574 | . . . . 62 . . 383 574 574 384 10 59 59 59 59 . . . . . . Highest-Rated Ally 159 | . . . . 31 . . 159 159 136 96 10 30 30 30 30 . . . . . . Total Orders 13 | . . . . . . . . 5 2 6 . . . . . . . . . . . STAY 6 | . . . . . . . . 2 1 3 . . . . . . . . . . . FOLLOW 7 | . . . . . . . . 3 1 3 . . . . . . . . . . . Ally Attacks 205 | . . . . 13 . . 74 58 7 36 . . 9 . 8 . . . . . . Total Damage 6544 | . . . . 189 . . 2045 2423 261 1413 . . 115 . 98 . . . . . . Kills 32 | . . . . . . . 13 12 2 3 . . . . 2 . . . . . . Allies Corrupted 3 | . . . . . . . . . . 3 . . . . . . . . . . . Allies Melted . | . . . . . . . . . . . . . . . . . . . . . . Intel | -11 -10 -10 -8 -8 -8 -6 -6 -6 -6 -6 -5 -5 -5 -5 -4 -4 -4 -4 -3 -3 -3 ------- Run | Yrd Mat Sub Mat Sto Rec Fac Ext Cet Arc Hub Fac Upp Upp Zhi Pro Fac Upp Upp Res Qua Frg Active Infowar (turns) 12334 | . . . . . . 1058 1076 . . 261 1263 2 . . 105 1287 1350 472 1021 2682 1757 Sensors 10288 | . . . . . . 1058 1076 . . 261 705 . . . 105 1192 1311 472 756 2485 867 Terrain 125 | . . . . . . . . . . . . . . . . . . . . . 125 Traps 1229 | . . . . . . . . . . . 619 2 . . . . . . 454 . 154 Cloaking 278 | . . . . . . . . . . . . . . . . . . . . . 278 Jamming 1167 | . . . . . . . . . . . . . . . . 95 39 . . 197 836 ECM 24 | . . . . . . . . . . . . . . . . . . . . . 24 Robot Analysis Total 10 | . 5 . . 1 . . . . . . . . . 4 . . . . . . . Derelict Logs Recovered 5 | . . 1 . . . . . . . . . 1 . . 1 . 2 . . . . Drone Launches . | . . . . . . . . . . . . . . . . . . . . . . Drone Recoveries . | . . . . . . . . . . . . . . . . . . . . . . Exploration | -11 -10 -10 -8 -8 -8 -6 -6 -6 -6 -6 -5 -5 -5 -5 -4 -4 -4 -4 -3 -3 -3 ------------- Run | Yrd Mat Sub Mat Sto Rec Fac Ext Cet Arc Hub Fac Upp Upp Zhi Pro Fac Upp Upp Res Qua Frg Turns Passed 29047 | . 1154 513 616 1321 2501 1209 1883 995 886 688 3040 589 853 261 455 1669 1512 506 1096 3253 4047 Spaces Moved 16046 | 1 445 327 345 580 1130 854 1118 498 215 348 1885 479 806 184 417 985 793 276 551 1571 2238 Core 1 | . . . . . . . . . . . . . . . . . . . . . 1 Treads 9878 | . 436 . 171 580 974 854 823 484 215 348 1885 479 806 184 417 561 . . 255 321 85 Legs 3511 | 1 7 . . . . . 295 14 . . . . . . . 424 793 276 296 454 951 Wheels 659 | . 2 327 174 . 156 . . . . . . . . . . . . . . . . Hover 1829 | . . . . . . . . . . . . . . . . . . . . 796 1033 Flight 168 | . . . . . . . . . . . . . . . . . . . . . 168 Fastest Speed 29 | 120 120 140 110 170 74 74 89 127 127 127 99 99 99 99 99 99 174 174 133 114 29 Average Speed 132 | 120 228 150 139 170 138 87 122 149 127 127 118 99 99 99 99 135 174 174 152 167 102 Slowest Speed 1700 | 120 240 155 250 170 170 89 183 187 127 127 127 99 99 99 99 174 174 174 182 272 1700 Overloaded Moves 20 | . . . . . . . . . . . . . . . . . . . . . 20 Propulsion Burnouts . | . . . . . . . . . . . . . . . . . . . . . . Robots Hopped . | . . . . . . . . . . . . . . . . . . . . . . Potential Cave-ins 5 | . . . . . . 2 . . . . 2 . . . . . . . . . 1 Cave-ins Triggered . | . . . . . . . . . . . . . . . . . . . . . . Exploration Rate (%) 54 | 2 75 19 36 74 95 21 80 73 82 31 60 66 89 60 58 30 80 25 13 97 37 Regions Visited 21 Branch Regions 15 Pre-discovered Areas 13 | . 2 . 1 . 6 . . . . . . . . 3 1 . . . . . . Known Exits Taken 16 | . 1 1 1 . 1 1 1 1 1 1 1 . . . 1 1 1 1 1 1 . Unknown Exits Taken 5 | 1 . . . 1 . . . . . . . 1 1 1 . . . . . . . Scrap Searched 17 | . . 2 . . . . . . . . . 2 5 . 4 . 4 . . . . Spaces Dug 133 | . 1 . . 1 2 15 1 . . 9 36 . . . . 10 4 3 4 26 21 Terrain Destroyed 971 | . 1 . 1 10 4 35 4 . 8 190 340 4 8 . . 93 18 11 14 68 162 Melee 1 | . 1 . . . . . . . . . . . . . . . . . . . . Projectile 493 | . . . 1 10 4 35 4 . 8 31 115 4 3 . . 22 18 11 14 65 148 AOE 477 | . . . . . . . . . . 159 225 . 5 . . 71 . . . 3 14 Terrain Rammed . | . . . . . . . . . . . . . . . . . . . . . . Walls Destroyed . | . . . . . . . . . . . . . . . . . . . . . . Machines Disabled . | . . . . . . . . . . . . . . . . . . . . . . Actions | -11 -10 -10 -8 -8 -8 -6 -6 -6 -6 -6 -5 -5 -5 -5 -4 -4 -4 -4 -3 -3 -3 --------- Run | Yrd Mat Sub Mat Sto Rec Fac Ext Cet Arc Hub Fac Upp Upp Zhi Pro Fac Upp Upp Res Qua Frg Total 22306 | . 517 340 425 772 2024 1236 1536 723 806 536 2464 568 841 260 443 1200 883 290 768 2024 3650 Wait 3790 | . 6 5 11 88 788 286 239 144 551 105 261 41 7 61 5 58 28 . 150 197 759 Move 16024 | . 444 326 344 579 1129 853 1117 497 214 347 1884 478 805 183 416 984 792 275 550 1570 2237 Hop . | . . . . . . . . . . . . . . . . . . . . . . Pick Up 243 | . 16 2 14 8 25 7 12 17 6 6 26 6 2 2 2 6 4 . 11 25 46 Fast Attach 81 | . 2 . 4 6 3 5 3 4 2 3 9 . 2 5 . 1 . 2 2 2 26 Attach 68 | . 4 1 4 . 4 2 4 . 2 . 11 . . . . 1 . . 1 3 31 Detach 34 | . 1 . . . 6 2 6 . 1 1 3 . . . . . . . . 3 11 Swap 262 | . 6 2 7 5 . 9 24 1 . 5 25 2 . . 2 41 16 1 8 51 57 Drop 262 | . 5 . 15 14 37 8 13 24 6 10 27 6 4 6 2 7 6 1 8 23 40 Fire 1396 | . 32 3 26 72 32 63 67 36 24 59 218 27 21 3 16 102 37 11 38 149 360 Melee 5 | . 1 1 . . . . 3 . . . . . . . . . . . . . . Ram 1 | . . . . . . . . . . . . . . . . . . . . 1 . Kick . | . . . . . . . . . . . . . . . . . . . . . . Crush 1 | . . . . . . 1 . . . . . . . . . . . . . . . Escape Stasis 85 | . . . . . . . 2 . . . . . . . . . . . . . 83 Rewire 54 | . . . . . . . 46 . . . . 8 . . . . . . . . . Trap . | . . . . . . . . . . . . . . . . . . . . . . Miscellaneous . | . . . . . . . . . . . . . . . . . . . . . . Route ------- -11/Scrapyard -10/Materials (discovered 6 exits: *Mat x3 / [*Min x2] / *Sub) -10/Subcaves (discovered 2 exits: *Mat x2) -8/Materials (discovered 4 exits: [*Fac x2] / *Sto x2) -8/Storage (discovered 2 exits: [*Fac] / *Rec) -8/Recycling -6/Factory (discovered 6 exits: Fac x3 / Low x2 / *Ext) -6/Extension (discovered 2 exits: *Fac / *Cet) -6/Cetus (discovered 2 exits: *Fac / *Arc) -6/Archives (discovered 3 exits: *Fac / *Hub x2) -6/Hub_04(d) (discovered 2 exits: *Fac x2) -5/Factory (discovered 3 exits: *Fac / *Upp x2) -5/Upper Caves -5/Upper Caves (discovered 2 exits: *Fac / *Zhi) -5/Zhirov -4/Proximity Caves -4/Factory (discovered 2 exits: *Upp x2) -4/Upper Caves -4/Upper Caves -3/Research -3/Quarantine (discovered 3 exits: *Res / [*Sec] / *Frg) -3/Protoforge (discovered 1 exit: *Res) History --------- Turn | Location | Event 1 | -11/Scrapyard | Discovered new exit (range 0) 1 | -11/Scrapyard | Entered Materials 245 | -10/Materials | Discovered new exit (range 11) 324 | -10/Materials | Build established: Mutant 376 | -10/Materials | Discovered new exit (range 8) 779 | -10/Materials | Central database locked down 810 | -10/Materials | Discovered new exit (range 15) 1003 | -10/Materials | Discovered new exit (range 7) 1027 | -10/Materials | Loaded intel: 8 terminal locations 1068 | -10/Materials | Learned Recycling recycling unit intel 1098 | -10/Materials | Identified exit to Materials 1098 | -10/Materials | Identified exit to Subcaves 1120 | -10/Materials | Loaded intel: 2 recycling unit locations 1132 | -10/Materials | Learned Recycling recycling unit intel 1155 | -10/Materials | Entered Subcaves 1156 | -10/Subcaves | Approached by a straggling Scientist 1156 | -10/Subcaves | Identified exit to Materials 1197 | -10/Subcaves | Shifting Twisted Machinery released Piercing Trap 1431 | -10/Subcaves | Learned Materials stockpile data 1668 | -10/Subcaves | Entered Materials 1668 | -8/Materials | Evolved 4 slots: Propulsion x2, Utility x1, Weapon x1 1745 | -8/Materials | Identified exit to Storage 1857 | -8/Materials | Discovered new exit (range 16) 1968 | -8/Materials | Build established: Gunner 2135 | -8/Materials | Learned Factory stockpile data 2161 | -8/Materials | Learned Factory stockpile data 2177 | -8/Materials | Learned Factory trap positions 2184 | -8/Materials | Learned location of 1 exit from Recycling 2185 | -8/Materials | Learned location of 1 exit from Extension 2186 | -8/Materials | Learned location of 1 exit from Lower Caves 2187 | -8/Materials | Learned Factory terminal intel 2211 | -8/Materials | Learned Storage emergency access door positions 2221 | -8/Materials | Discovered new exit (range 16) 2240 | -8/Materials | Learned location of 2 exits from Factory 2284 | -8/Materials | Entered Storage 2884 | -8/Storage | Destroyed 7 combat bots 3110 | -8/Storage | Discovered new exit (range 8) 3424 | -8/Storage | Met a pair of Derelict thieves 3600 | -8/Storage | Used back door to open Recycling access 3600 | -8/Storage | Discovered new exit (range 4) 3605 | -8/Storage | Entered Recycling 3606 | -8/Recycling | Identified exit to Factory 3607 | -8/Recycling | Loaded intel: 4 recycling unit locations 4664 | -8/Recycling | Learned location of Extension (-6) 4730 | -8/Recycling | Learned location of Zion (-6) 4746 | -8/Recycling | Entered Scraplab 4753 | -8/Recycling | Found Prototype Device 4753 | -8/Recycling | Identified Scrap Engine 4787 | -8/Recycling | Learned location of 1 exit from Storage 4867 | -8/Recycling | Learned Storage stockpile data 4929 | -8/Recycling | Learned 4 Factory zone layouts 4967 | -8/Recycling | Learned Storage security intel 5380 | -8/Recycling | Build established: Construct 6106 | -8/Recycling | Entered Factory 6106 | -6/Factory | Evolved 4 slots: Power x1, Propulsion x1, Utility x2 6107 | -6/Factory | Identified exit to Factory 6107 | -6/Factory | Identified exit to Lower Caves 6108 | -6/Factory | Identified exit to Extension 6110 | -6/Factory | Loaded intel: 102 trap records 6112 | -6/Factory | Loaded intel: 27 terminal locations 6209 | -6/Factory | Central database locked down 7140 | -6/Factory | Learned 2 Hub_04(d) zone layouts 7216 | -6/Factory | Learned Hub_04(d) trap positions 7231 | -6/Factory | Cargo convoy interrupted 7280 | -6/Factory | Learned location of 1 exit from Proximity Caves 7315 | -6/Factory | Entered Extension 7316 | -6/Extension | Identified exit to Cetus 7793 | -6/Extension | Rescued a captive Derelict 7881 | -6/Extension | Door terminal overloaded 7881 | -6/Extension | Rescued a captive Derelict 7882 | -6/Extension | Rescued a captive Derelict 7893 | -6/Extension | Rescued a captive Derelict 7895 | -6/Extension | Rescued a captive Derelict 8089 | -6/Extension | Spotted B-75 Beast 8105 | -6/Extension | Allies destroyed B-75 Beast 8116 | -6/Extension | Spotted B-75 Beast 8139 | -6/Extension | Core integrity fell below 50% 8140 | -6/Extension | Allies destroyed B-75 Beast 8159 | -6/Extension | Lost 3 parts (1p1u1w) 8180 | -6/Extension | Lost 5 allies 8263 | -6/Extension | Rescued A7 8277 | -6/Extension | Lost 4 allies 8830 | -6/Extension | Rescued a captive Derelict 8833 | -6/Extension | Rescued a captive Derelict 8846 | -6/Extension | Rescued a captive Derelict 8847 | -6/Extension | Rescued a captive Derelict 8850 | -6/Extension | Rescued a captive Derelict 8895 | -6/Extension | Rescued a captive Derelict 9157 | -6/Extension | Discovered exit to Factory (range 10) 9198 | -6/Extension | Entered Cetus 9198 | -6/Cetus | Accompanied by 9 allies (A7) 9203 | -6/Cetus | Acquired a Cetus Manufacturing Module code from A7 9239 | -6/Cetus | Spotted Cetus Guard 9239 | -6/Cetus | Spotted Cetus Guard 9241 | -6/Cetus | Spotted Cetus Guard 9247 | -6/Cetus | Spotted Cetus Guard 9250 | -6/Cetus | Allies destroyed Cetus Guard 9262 | -6/Cetus | Allies destroyed Cetus Guard 9267 | -6/Cetus | Allies destroyed Cetus Guard 9271 | -6/Cetus | Destroyed Cetus Guard 9289 | -6/Cetus | Lost 5 allies 9354 | -6/Cetus | Started Cetus Manufacturing Module 9379 | -6/Cetus | Manufactured an Enhanced Grunt 9397 | -6/Cetus | Escorted A7 to Cetus Mainframe 9404 | -6/Cetus | Manufactured an Enhanced Grunt 9418 | -6/Cetus | Discovered new exit (range 15) 9429 | -6/Cetus | Manufactured an Enhanced Grunt 9451 | -6/Cetus | Spotted Cetus Guard 9451 | -6/Cetus | Spotted Cetus Guard 9454 | -6/Cetus | Manufactured an Enhanced Grunt 9456 | -6/Cetus | Spotted Cetus Guard 9460 | -6/Cetus | Allies destroyed Cetus Guard 9460 | -6/Cetus | Spotted Cetus Guard 9467 | -6/Cetus | Allies destroyed Cetus Guard 9467 | -6/Cetus | Allies destroyed Cetus Guard 9474 | -6/Cetus | Allies destroyed Cetus Guard 9479 | -6/Cetus | Manufactured an Enhanced Grunt 9484 | -6/Cetus | Discovered exit to Factory (range 15) 9493 | -6/Cetus | Met Revision 17 9719 | -6/Cetus | Build established: Commander-Construct 9948 | -6/Cetus | Security sweep announced 10186 | -6/Cetus | Identified exit to Archives 10193 | -6/Cetus | Entered Archives 10193 | -6/Archives | Accompanied by 7 allies (A7) 10198 | -6/Archives | Received a hacking code to weaken MAIN.C 10297 | -6/Archives | Discovered exit to Factory (range 15) 10375 | -6/Archives | Discovered new exit (range 16) 10444 | -6/Archives | Discovered new exit (range 16) 11075 | -6/Archives | Identified exit to Hub_04(d) 11079 | -6/Archives | Entered Hub_04(d) 11079 | -6/Hub_04(d) | Accompanied by 4 allies 11081 | -6/Hub_04(d) | Loaded intel: 12 trap records 11480 | -6/Hub_04(d) | Discovered exit to Factory (range 7) 11634 | -6/Hub_04(d) | Network Hub disabled 11652 | -6/Hub_04(d) | Spotted Lightning 11654 | -6/Hub_04(d) | Spotted Lightning 11656 | -6/Hub_04(d) | Spotted Lightning 11681 | -6/Hub_04(d) | Lost 4 allies 11687 | -6/Hub_04(d) | Core integrity fell below 20% 11689 | -6/Hub_04(d) | Destroyed Lightning 11702 | -6/Hub_04(d) | System corruption reached 10% 11707 | -6/Hub_04(d) | Destroyed Lightning 11729 | -6/Hub_04(d) | Destroyed Lightning 11735 | -6/Hub_04(d) | Found Prototype Processor 11735 | -6/Hub_04(d) | Identified Exp. Targeting Computer 11744 | -6/Hub_04(d) | Found Prototype Device 11744 | -6/Hub_04(d) | Identified Exp. EM Shield 11764 | -6/Hub_04(d) | Found Exp. Targeting Computer 11767 | -6/Hub_04(d) | Entered Factory 11767 | -5/Factory | Evolved 2 slots: Utility x2 12118 | -5/Factory | Build established: Scavenger-Construct 12410 | -5/Factory | Destroyed 7 combat bots 12501 | -5/Factory | Spotted B-75 Beast 12524 | -5/Factory | Destroyed B-75 Beast 12565 | -5/Factory | Build established: Construct 12660 | -5/Factory | Destroyed 7 combat bots 12967 | -5/Factory | First assault squad dispatched 13681 | -5/Factory | Identified exit to Upper Caves 13704 | -5/Factory | Discovered new exit (range 18) 13731 | -5/Factory | Garrison activated, responded to threat 14589 | -5/Factory | Core integrity fell below 50% 14652 | -5/Factory | Destroyed 7 combat bots 14807 | -5/Factory | Entered Upper Caves 15181 | -5/Upper Caves | Attracted the attention of an 0b10 outpost 15231 | -5/Upper Caves | Destroyed 9 combat bots 15278 | -5/Upper Caves | Discovered new exit (range 11) 15333 | -5/Upper Caves | Learned Factory terminal intel 15396 | -5/Upper Caves | Entered another Upper Caves area 15396 | -5/Upper Caves | Accompanied by 2 allies 15397 | -5/Upper Caves | Encountered a Warlord checkpoint 15537 | -5/Upper Caves | Discovered new exit (range 15) 16164 | -5/Upper Caves | Discovered new exit (range 10) 16249 | -5/Upper Caves | Entered Zhirov 16249 | -5/Zhirov | Accompanied by 2 allies 16249 | -5/Zhirov | Discovered new exit (range 3) 16267 | -5/Zhirov | Met Zhirov 16287 | -5/Zhirov | Learned location of Testing (-2) 16287 | -5/Zhirov | Learned location of Command (-1) 16296 | -5/Zhirov | Zhirov requested help retrieving the SGEMP Prototype 16311 | -5/Zhirov | Found Alien Artifact 16311 | -5/Zhirov | Identified Integrated Dissipator 16311 | -5/Zhirov | Installed Integrated Dissipator, increased core heat dissipation (+20) 16329 | -5/Zhirov | Found Alien Artifact 16510 | -5/Zhirov | Entered Proximity Caves 16510 | -4/Proximity Caves | Accompanied by 2 allies 16511 | -4/Proximity Caves | Identified exit to Factory 16827 | -4/Proximity Caves | Spotted B-86 Titan 16833 | -4/Proximity Caves | Destroyed B-86 Titan 16965 | -4/Proximity Caves | Entered Factory 16965 | -4/Factory | Evolved 2 slots: Propulsion x1, Utility x1 16966 | -4/Factory | Loaded intel: 26 terminal locations 17415 | -4/Factory | Watched by a mysterious "MATRIX" hacker 17473 | -4/Factory | Fabricated Railgun? 18381 | -4/Factory | Identified exit to Upper Caves 18552 | -4/Factory | Garrison activated, responded to threat 18634 | -4/Factory | Entered Upper Caves 18802 | -4/Upper Caves | Attacked by a faux Warlord 19005 | -4/Upper Caves | Learned Research terminal intel 19803 | -4/Upper Caves | Discovered new exit (range 10) 19878 | -4/Upper Caves | Identified exit to Upper Caves 19943 | -4/Upper Caves | Attracted the attention of an 0b10 checkpoint 20146 | -4/Upper Caves | Entered another Upper Caves area 20256 | -4/Upper Caves | Discovered new exit (range 10) 20276 | -4/Upper Caves | Identified exit to Research 20532 | -4/Upper Caves | Found Alien Artifact 20532 | -4/Upper Caves | Identified Core Expander 20532 | -4/Upper Caves | Installed Core Expander, added new Power slot 20652 | -4/Upper Caves | Entered Research 20652 | -3/Research | Evolved 2 slots: Utility x1, Weapon x1 20653 | -3/Research | Loaded intel: 21 terminal locations 20699 | -3/Research | Discovered new exit (range 5) 20706 | -3/Research | Identified exit to Quarantine 20852 | -3/Research | Revision forces began assault on 0b10 20861 | -3/Research | Met up with Revision 17++ 21352 | -3/Research | Research terminal network offline 21748 | -3/Research | Entered Quarantine 22810 | -3/Quarantine | System corruption reached 10% 23067 | -3/Quarantine | Central database locked down 23181 | -3/Quarantine | Found Alien Artifact 23526 | -3/Quarantine | Discovered new exit (range 15) 24171 | -3/Quarantine | Found Alien Artifact 24205 | -3/Quarantine | Found Alien Artifact 24838 | -3/Quarantine | Spotted Fortress 24929 | -3/Quarantine | Discovered new exit (range 5) 24929 | -3/Quarantine | Discovered new exit (range 6) 24933 | -3/Quarantine | Identified exit to Protoforge 25001 | -3/Quarantine | Entered Protoforge 25108 | -3/Protoforge | Spotted Hotshot 25108 | -3/Protoforge | Spotted Hotshot 25108 | -3/Protoforge | Spotted Hotshot 25108 | -3/Protoforge | Spotted Hotshot 25108 | -3/Protoforge | Spotted Hotshot 25114 | -3/Protoforge | Destroyed Hotshot 25117 | -3/Protoforge | Destroyed Hotshot 25120 | -3/Protoforge | Destroyed Hotshot 25125 | -3/Protoforge | Destroyed Hotshot 25128 | -3/Protoforge | Destroyed Hotshot 25325 | -3/Protoforge | Discovered new exit (range 12) 25377 | -3/Protoforge | Identified exit to Research 25459 | -3/Protoforge | Superfortress began startup sequence 25654 | -3/Protoforge | Identified Dimensional Node Initializer 25654 | -3/Protoforge | Initialized slip node 26368 | -3/Protoforge | Found Prototype Device 26370 | -3/Protoforge | Identified Cep. Weapon Articulator 26374 | -3/Protoforge | Found Cep. Weapon Articulator 26677 | -3/Protoforge | Found Prototype Device 26677 | -3/Protoforge | Identified Crosscalibrator 26694 | -3/Protoforge | Found Prototype Device 26696 | -3/Protoforge | Identified Cep. Antimissile System 26717 | -3/Protoforge | Spotted Decapitator 26717 | -3/Protoforge | Spotted Decapitator 26717 | -3/Protoforge | Spotted Decapitator 26717 | -3/Protoforge | Spotted Decapitator 26721 | -3/Protoforge | System corruption reached 30% 26724 | -3/Protoforge | Destroyed Decapitator 26725 | -3/Protoforge | Destroyed Decapitator 26732 | -3/Protoforge | Destroyed Decapitator 26736 | -3/Protoforge | Destroyed Decapitator 26752 | -3/Protoforge | Lost 3 parts (3u) 26794 | -3/Protoforge | Found Prototype Device 26800 | -3/Protoforge | Found Prototype Device 26808 | -3/Protoforge | Found Prototype Storage 26812 | -3/Protoforge | Identified Cep. Matter Streamer (x2) 26815 | -3/Protoforge | Identified Cep. Antigrav Storage Unit 26816 | -3/Protoforge | Found Cep. NT7 Matterbank 26902 | -3/Protoforge | Build established: Scavenger-Construct 26976 | -3/Protoforge | Destroyed 7 combat bots 27005 | -3/Protoforge | Spotted V188-u 27009 | -3/Protoforge | Spotted V479-e 27014 | -3/Protoforge | Spotted V093-s 27145 | -3/Protoforge | Destroyed V188-u 27214 | -3/Protoforge | Spotted Decapitator 27214 | -3/Protoforge | Spotted V095-h 27217 | -3/Protoforge | Spotted V705-y 27301 | -3/Protoforge | Spotted V094-t 27337 | -3/Protoforge | Spotted Decapitator 27337 | -3/Protoforge | Spotted Decapitator 27348 | -3/Protoforge | Destroyed Decapitator 27390 | -3/Protoforge | Found Prototype Device 27400 | -3/Protoforge | Identified Exp. EM Disruption Field 27418 | -3/Protoforge | Found Exp. Force Field 27420 | -3/Protoforge | Found Cep. Reaction Jets 27481 | -3/Protoforge | Spotted Immortal 27481 | -3/Protoforge | Spotted Immortal 27486 | -3/Protoforge | Destroyed Immortal 27488 | -3/Protoforge | Destroyed Immortal 27512 | -3/Protoforge | Spotted V570-v 27513 | -3/Protoforge | Spotted V835-b 27514 | -3/Protoforge | Spotted V417-a 27528 | -3/Protoforge | Destroyed V835-b 27537 | -3/Protoforge | Destroyed V570-v 27554 | -3/Protoforge | Found Prototype Energy Gun 27556 | -3/Protoforge | Found Prototype Ballistic Gun 27558 | -3/Protoforge | Found Prototype Energy Gun 27559 | -3/Protoforge | Found Cep. Miniperforator 27561 | -3/Protoforge | Found Cep. Lightning Penetrator 27569 | -3/Protoforge | Identified Cep. Variable Chargecaster (x2) 27572 | -3/Protoforge | Identified Cep. XC Strikerail 27573 | -3/Protoforge | Spotted V162-p 27625 | -3/Protoforge | Build established: Construct 27780 | -3/Protoforge | Destroyed V162-p 27805 | -3/Protoforge | Found Corrupted Cep. Plasma Driver 27807 | -3/Protoforge | Found Faulty Cep. XC Strikerail 27809 | -3/Protoforge | Found Corrupted Cep. Helical Railcannon 27810 | -3/Protoforge | Found Cep. XC Strikerail 27812 | -3/Protoforge | Found Faulty Cep. Plasma Driver 27815 | -3/Protoforge | Found Faulty Cep. Helical Railcannon 27879 | -3/Protoforge | Scanned by Researcher 27884 | -3/Protoforge | Spotted AP7-3 27884 | -3/Protoforge | Spotted AP7-3 27905 | -3/Protoforge | Destroyed AP7-3 27931 | -3/Protoforge | Destroyed AP7-3 27951 | -3/Protoforge | Found Prototype Device 27951 | -3/Protoforge | Identified Exp. ECM Suite 27954 | -3/Protoforge | Found Prototype Energy Gun 27954 | -3/Protoforge | Identified Enh. Gamma Rifle 27961 | -3/Protoforge | Found Prototype Processor 27961 | -3/Protoforge | Identified Exp. Target Analyzer 27965 | -3/Protoforge | Identified Subatomic Replicator 27965 | -3/Protoforge | Used Subatomic Replicator to replicate Faulty Cep. Core Analysis Suite 27967 | -3/Protoforge | Found Faulty Cep. Core Analysis Suite 28082 | -3/Protoforge | Found Cep. Thermoelectric Network 28084 | -3/Protoforge | Found Faulty Cep. Thermoelectric Network 28134 | -3/Protoforge | Found Exp. Targeting Computer 28144 | -3/Protoforge | Found Cep. Cloak Mesh 28146 | -3/Protoforge | Found Cep. Cloak Mesh 28251 | -3/Protoforge | First assault squad dispatched 28273 | -3/Protoforge | Found Faulty Cep. XC Strikerail 28669 | -3/Protoforge | Found Cep. Rapid Grenade Launcher 28712 | -3/Protoforge | Found Cep. Antigrav Storage Unit 28715 | -3/Protoforge | Found Cep. Antigrav Storage Unit 28719 | -3/Protoforge | Found Cep. Chromion Battery 28942 | -3/Protoforge | Destroyed 7 combat bots 28956 | -3/Protoforge | Spotted Hotshot 28960 | -3/Protoforge | Destroyed Hotshot 28982 | -3/Protoforge | Core integrity fell below 50% 28985 | -3/Protoforge | Spotted Striker 28986 | -3/Protoforge | Spotted Striker 28992 | -3/Protoforge | Spotted Executioner 28993 | -3/Protoforge | Spotted Hotshot 28994 | -3/Protoforge | Destroyed Striker 29009 | -3/Protoforge | Spotted Hotshot 29010 | -3/Protoforge | Spotted Executioner 29012 | -3/Protoforge | Destroyed Executioner 29014 | -3/Protoforge | Spotted Striker 29021 | -3/Protoforge | Spotted Striker 29024 | -3/Protoforge | Destroyed Striker 29031 | -3/Protoforge | Spotted Hotshot 29032 | -3/Protoforge | Core integrity fell below 20% 29048 | -3/Protoforge | Destroyed by P-80 Master with Gamma Rifle Last Messages --------------- 29039_ System corrupted: Cep. XC Strikerail jammed. 29039_ Railslug penetrates Striker. 29039_ Striker suffers critical hit (Destroy). 29039_ Destroyed Impulse Thruster Array. 29039_ Striker knocked back. 29039_ Railslug penetrates Striker. 29039_ Superfortress suffers critical hit (Destroy). 29039_ Destroyed Cep. Helical Railcannon. 29039_ Slug penetrates Striker. 29039_ Slug penetrates Reinforced Barrier. 29042_ Slug penetrates Superfortress. 29042_ Railslug penetrates Superfortress. 29046_ Armored-Biometal Exoskeleton destroyed. 29046_ Armored-Biometal Exoskeleton core remains intact and functional. 29048_ System corrupted: Component data lost. 29048_ Superfortress assembles Decapitator. [Achievement: Magneto] Map ----- +----------------------------------------------------+ | ???????????#" " " #???????# #??????????? | | ???????????#" " " #???????# #??????????? | | ???????????#" " " ##???????# #??????????? | | ???????????#" " ""# # " "#??????# #??????????? | | ???????????#"""#??# #"""""#??????# #??????????? | | ???????????####???# ^#######??????# #??????????? | | ??????????????????# #????????????# #??????????? | | ??????????????????# #????????????# #??????????? | | ??????????????????# #????????????# #??????????? | | ??????????????????# #????????????# #??????????? | | ??????????????????# #????????????# #??????????? | | ??????????????????# #????????????# ############ | | ???????????????#### #????????????# | | ################### ###??????????# | | !=%[!%!=!! ""#??????????# #########++# | | =/=%!%===* ###?????????# #??????????? | | %=%*/!%* %!= " #????????# #??????????? | | ####+++#######=[%%########????????# #??????????? | | # #??##%!=##??????????????# #??????????? | | # #???#[ ##??????????????# #??????????? | | # " " #???# #???????????????# #??????????? | | # " " #???# #???????????????# #??????????? | | # "" "" #???# #???????????????# #??????????? | | # #???# ^ #?????####??????# #??????????? | | ###########???# ################# #??????????? | | ??????????????# x K@K%% #??????????? | | ??????????????# pxFFF% #??????????? | | ??????????????# n =FFF% #??????????? | | ??????????????######## FFFc ########??????????? | | ?????????????????????# E % #?????????????????? | | ?????????????????????# g% #?????????????????? | | ?????????????????????# % #?????????????????? | | ?????????????????????# #?????????????????? | | ?????????????????????## ##?????????????????? | | ????????????????????### #??????????????????? | | ??????????????#######"# g ###????????????????? | | ??????????#???#" "" """????????????????? | | ??????????# ### [ u """??????????????? | | ##???####### " !%= ""??????????????? | | "#####""""# " g==!! ""??????????????? | | """"" %###"" $ $ ?????????????? | | *$= ????????????? | | % ?????????????? | | ?????????????? | | ?????????????? | | ??????????????? | | ??????????????? | | !#####!!!!##### ???????????????? | | "#???#""""#???#"""""""""""""""""""???????????????? | | ##???######???#""""""""""""""????????????????????? | +----------------------------------------------------+ Best States ------------- Heat Dissipation 214 Coolant Potential 120 Energy Generation 81 Energy Capacity 2574 Matter Stores 300 Matter Capacity 300 Sight Range 16 Robot Scan Range 16 Terrain Scan Range 24 Terrain Scan Density 10 ECM Strength 2 Jamming Range 16 Cloak Strength 6 Base Temperature (-) 200 Armor Coverage 600 Resistance: KI 25 Resistance: EM 75 Weapon Cycling 25 Evasion (%) 80 Targeting Accuracy 30 Core Analysis 11 Recoil Reduction 6 Particle Charging 30 Item Schematics ----------------- Flak Cannon | -8/Storage | Hacked Imp. Arc Thrower | -5/Zhirov | Free Exp. Optical Array | -5/Zhirov | Free Exp. Heat Sink | -5/Zhirov | Free Assault Drone Bay | -5/Zhirov | Free Huge Storage Unit | -4/Factory | Hacked Enh. Armored Medium Treads | -3/Protoforge | Archive Cld. Antimatter Reactor | -3/Protoforge | Archive Exp. Hacking Suite | -3/Protoforge | Archive Enh. Flexi-carbon Leg | -3/Protoforge | Archive Gravity Neutralizer | -3/Protoforge | Archive Adv. Micro-nuke Launcher | -3/Protoforge | Archive Exp. Terrain Scanner | -3/Protoforge | Archive Exp. Focal Shield | -3/Protoforge | Archive Robot Schematics ------------------ None Fabricated ------------ Railgun | x2 | -4/Factory | Preloaded Repaired ---------- Nothing Studied --------- Arm. Treads | -6/Factory | Hacked Hyp. Gauss Cannon | -5/Factory | Hacked Myomer Leg | -3/Quarantine | Hacked HERF Cannon | -3/Quarantine | Hacked Particle Reactor | -3/Protoforge | Hacked Alien Tech Used ----------------- Integrated Dissipator Core Expander Dimensional Node Initializer Subatomic Replicator Achievements -------------- Just Shoot The Terminal Magneto Challenges ------------ None Game ------ Seed SmartBoreLaser Manual? 0 Play Time 04:53:13 Cumulative 432.2 hours Start 2026.09.18 @ 19:06:47 End 2026.09.19 @ 20:37:33 Sessions 9 Manual Loads 0 Difficulty Rogue Special Mode None Game No. 379 Rogue 325 Adventurer 54 Explorer 0 Win Type - Total 25 Types 15/2/1/1/1/1/1/1/1/1 Lore% 83 Gallery% 72 Achievement% 72 Wizard Run 0 Options --------- Layout 1 ASCII 0 Keyboard 0 Movement Mouse Keybinds 1 Fullscreen 2 Font 32/Tamsyn Map View 50x35 Zoom Use 0% Tactical HUD 1 Map Filters NONE Filters NONE Steam 1 RUN: 46d8d249-cf56-4aef-9c43-8cf056b969f9